bitfinex/quotes_BTCUSD_20250831
["timestamp","ask_amount","ask_price","bid_price","bid_amount"]
[1756630488448,1.19350238,109210.0,109200.0,0.34891581]
[1756630492924,1.19350058,109210.0,109200.0,0.34891581]
[1756630494773,1.19350058,109210.0,109200.0,0.38178731]
[1756630495651,1.19350058,109210.0,109200.0,0.37978731]
[1756630495892,1.19350058,109210.0,109200.0,0.34591581]
[1756630498447,1.19350058,109210.0,109200.0,0.19283581]
[1756630498625,1.19350058,109210.0,109200.0,0.34591581]
[1756630500237,1.19350058,109210.0,109200.0,0.34587581]
[1756630500568,1.19350058,109210.0,109200.0,0.19283581]
[1756630500775,1.19350058,109210.0,109200.0,0.34587581]
[1756630502227,1.19350058,109210.0,109200.0,0.34887581]
[1756630502633,1.1935001,109210.0,109200.0,0.34887581]
[1756630503182,1.19350013,109210.0,109200.0,0.34887581]
[1756630503602,1.19350009,109210.0,109200.0,0.34887581]
[1756630512415,1.19350009,109210.0,109200.0,0.19080581]
[1756630512554,1.52428516,109210.0,109200.0,0.31631481]
[1756630512744,1.55181816,109210.0,109200.0,0.31631481]
[1756630512948,1.36848431,109210.0,109200.0,0.31631481]
[1756630513170,1.55161816,109210.0,109200.0,0.31631481]
[1756630513386,1.55162048,109210.0,109200.0,0.31631481]
[1756630513580,1.55162048,109210.0,109200.0,0.16327481]
[1756630513782,1.56881648,109210.0,109200.0,0.31631481]
[1756630513981,1.57526514,109210.0,109200.0,0.31631481]
[1756630514192,1.56881648,109210.0,109200.0,0.31631481]
[1756630514834,1.56881648,109210.0,109200.0,0.31331481]
[1756630515048,1.57526281,109210.0,109200.0,0.31331481]
[1756630515399,1.56881648,109210.0,109200.0,0.31331481]
[1756630516566,1.56881648,109210.0,109200.0,0.16027481]
[1756630516771,1.56881648,109210.0,109200.0,0.31331481]
[1756630519089,1.37448622,109210.0,109200.0,0.31331481]
[1756630519291,1.56881648,109210.0,109200.0,0.31331481]
[1756630524129,1.56879476,109210.0,109200.0,0.31331481]
[1756630524334,1.56879476,109210.0,109200.0,0.31645481]
[1756630534118,1.56879476,109210.0,109200.0,0.31853481]
[1756630534772,1.55160989,109210.0,109200.0,0.31853481]
[1756630534978,1.56878555,109210.0,109200.0,0.31853481]
[1756630535330,1.56878604,109210.0,109200.0,0.31853481]
[1756630538193,1.56878818,109210.0,109200.0,0.31853481]
[1756630539148,1.56878818,109210.0,109200.0,0.16341481]
[1756630539378,1.56878818,109210.0,109200.0,0.31641481]
[1756630540713,1.56978818,109210.0,109200.0,0.31641481]
[1756630542326,1.57623585,109210.0,109200.0,0.31641481]
[1756630544045,1.24545078,109210.0,109200.0,0.31641481]
[1756630544767,1.24545078,109210.0,109200.0,0.31849481]
[1756630545631,1.24548665,109210.0,109200.0,0.31849481]
[1756630552538,1.24548679,109210.0,109200.0,0.31849481]
[1756630554565,0.58391665,109210.0,109200.0,0.31849481]
[1756630554776,1.24548679,109210.0,109200.0,0.31849481]
[1756630555385,1.23903672,109210.0,109200.0,0.31849481]
[1756630556162,1.21323699,109210.0,109200.0,0.31849481]
[1756630556589,1.23903636,109210.0,109200.0,0.31849481]
[1756630558965,1.23903636,109210.0,109200.0,0.31845481]
[1756630559290,1.23903636,109210.0,109200.0,0.16549481]
[1756630559679,1.23903636,109210.0,109200.0,0.31845481]
[1756630560313,1.23903378,109210.0,109200.0,0.31845481]
[1756630566191,1.23902569,109210.0,109200.0,0.31845481]
[1756630577034,1.23902605,109210.0,109200.0,0.31845481]
[1756630577531,1.23902633,109210.0,109200.0,0.31845481]
[1756630587433,1.21323699,109210.0,109200.0,0.31845481]
[1756630587718,1.23903493,109210.0,109200.0,0.31845481]
[1756630588356,0.90824986,109210.0,109200.0,0.31845481]
[1756630588565,0.89105123,109210.0,109200.0,0.31845481]
[1756630588973,0.56026616,109210.0,109200.0,0.31845481]
[1756630589161,0.89105123,109210.0,109200.0,0.31845481]
[1756630591180,0.89104807,109210.0,109200.0,0.31845481]
[1756630592816,0.89104807,109210.0,109200.0,0.19302681]
[1756630592999,1.22183314,109210.0,109200.0,0.34590681]
[1756630593351,0.89104807,109210.0,109200.0,0.34590681]
[1756630594326,0.55104807,109210.0,109200.0,0.34590681]
[1756630598314,0.89104492,109210.0,109200.0,0.34590681]
[1756630598520,0.56025985,109210.0,109200.0,0.34590681]
[1756630598716,0.89104492,109210.0,109200.0,0.34590681]
[1756630598918,0.8910447,109210.0,109200.0,0.34590681]
[1756630602911,0.56025963,109210.0,109200.0,0.34590681]
[1756630603111,0.8910447,109210.0,109200.0,0.34590681]
[1756630603347,0.8910447,109210.0,109200.0,0.49590681]
[1756630603561,0.8910447,109210.0,109200.0,0.34590681]
[1756630603737,0.8910447,109210.0,109200.0,0.49590681]
[1756630604138,0.8910447,109210.0,109200.0,0.34590681]
[1756630604338,0.8910447,109210.0,109200.0,0.49590681]
[1756630604537,0.8910447,109210.0,109200.0,0.34590681]
[1756630605104,0.8910447,109210.0,109200.0,0.49590681]
[1756630605481,0.8910447,109210.0,109200.0,0.34590681]
[1756630605688,0.8910447,109210.0,109200.0,0.49590681]
[1756630606080,0.8910447,109210.0,109200.0,0.34590681]
[1756630606280,0.8910447,109210.0,109200.0,0.49590681]
[1756630606466,0.8910447,109210.0,109200.0,0.34590681]
[1756630607243,0.56025963,109210.0,109200.0,0.34590681]
[1756630607442,0.8910447,109210.0,109200.0,0.34590681]
[1756630607680,0.88245192,109210.0,109200.0,0.49590681]
[1756630608061,0.88245192,109210.0,109200.0,0.34590681]
[1756630609795,0.85491892,109210.0,109200.0,0.34590681]
[1756630611716,0.86350994,109210.0,109200.0,0.34590681]
[1756630611922,0.86350994,109210.0,109200.0,0.34586681]
[1756630612124,0.86350994,109210.0,109200.0,0.34448767]
[1756630612349,1.22182601,109210.0,109200.0,0.34448767]
[1756630612545,1.22182601,109210.0,109200.0,0.31695567]
[1756630613934,0.89104094,109210.0,109200.0,0.31695567]
[1756630614386,1.22182601,109210.0,109200.0,0.31695567]
[1756630619775,1.22183047,109210.0,109200.0,0.31695567]
[1756630622101,1.22183047,109210.0,109200.0,0.31691567]
[1756630628826,1.22183047,109210.0,109200.0,0.16411567]
[1756630629028,1.22183047,109210.0,109200.0,0.31691567]
[1756630629257,1.21323499,109210.0,109200.0,0.31691567]
[1756630629477,1.22183184,109210.0,109200.0,0.16411567]
[1756630629679,1.22183184,109210.0,109200.0,0.31691567]
[1756630632885,0.5602617,109210.0,109200.0,0.31691567]
[1756630633118,1.22183184,109210.0,109200.0,0.31691567]
[1756630636521,1.00609983,109210.0,109200.0,0.31691567]
[1756630636668,1.18923368,109210.0,109200.0,0.31691567]
[1756630637687,0.52766354,109210.0,109200.0,0.31691567]
[1756630638558,1.18923368,109210.0,109200.0,0.31691567]
[1756630639996,1.18923385,109210.0,109200.0,0.31691567]
[1756630642398,1.18923385,109210.0,109200.0,0.31687567]
[1756630643777,1.18923385,109210.0,109200.0,0.16411567]
[1756630643978,1.18923385,109210.0,109200.0,0.31687567]
[1756630644888,0.52766371,109210.0,109200.0,0.31687567]
[1756630645094,1.18923385,109210.0,109200.0,0.31687567]
[1756630645438,0.85844878,109210.0,109200.0,0.31687567]
[1756630646439,1.18923385,109210.0,109200.0,0.31687567]
[1756630650738,0.52766383,109210.0,109200.0,0.31687567]
[1756630650917,1.18923397,109210.0,109200.0,0.31687567]
[1756630654005,1.18923397,109210.0,109200.0,0.16411567]
[1756630654185,1.18923397,109210.0,109200.0,0.31687567]
[1756630660575,0.52766383,109210.0,109200.0,0.31687567]
[1756630660808,1.18923397,109210.0,109200.0,0.31687567]
[1756630661336,1.18923492,109210.0,109200.0,0.31687567]
[1756630661774,1.18923493,109210.0,109200.0,0.31687567]
[1756630672194,1.18923586,109210.0,109200.0,0.31687567]
[1756630675871,1.18923585,109210.0,109200.0,0.31687567]
[1756630678880,0.85845078,109210.0,109200.0,0.31687567]
[1756630687152,0.83091978,109210.0,109200.0,0.31687567]
[1756630692526,0.82232065,109210.0,109200.0,0.31687567]
[1756630692742,0.83091986,109210.0,109200.0,0.31687567]
[1756630693294,0.83091987,109210.0,109200.0,0.31687567]
[1756630693944,0.5001348,109210.0,109200.0,0.31687567]
[1756630694149,0.83091987,109210.0,109200.0,0.31687567]
[1756630696010,0.85845087,109210.0,109200.0,0.31687567]
[1756630698619,0.85845087,109210.0,109200.0,0.34440667]
[1756630702637,0.55004914,109210.0,109200.0,0.34440667]
[1756630703184,0.54144992,109210.0,109200.0,0.34440667]
[1756630703387,0.55004915,109210.0,109200.0,0.34440667]
[1756630706699,0.89004915,109210.0,109200.0,0.34440667]
[1756630710012,0.66671262,109210.0,109200.0,0.34440667]
[1756630710175,0.84984647,109210.0,109200.0,0.34440667]
[1756630710386,0.84984644,109210.0,109200.0,0.31687567]
[1756630713694,0.89004912,109210.0,109200.0,0.31687567]
[1756630714436,0.55926405,109210.0,109200.0,0.16411567]
[1756630714624,0.89004912,109210.0,109200.0,0.16411567]
[1756630714814,0.89004912,109210.0,109200.0,0.31675567]
[1756630715264,0.55926405,109210.0,109200.0,0.31675567]
[1756630715515,0.89004912,109210.0,109200.0,0.31675567]
[1756630715830,0.89004912,109210.0,109200.0,0.34428567]
[1756630716269,0.55926405,109210.0,109200.0,0.34428567]
[1756630716463,0.89004912,109210.0,109200.0,0.34428567]
[1756630716877,0.89004912,109210.0,109200.0,0.19164567]
[1756630717073,0.89004912,109210.0,109200.0,0.34428567]
[1756630718049,0.52251812,109210.0,109200.0,0.34428567]
[1756630718445,0.52251812,109210.0,109200.0,0.19164567]
[1756630718742,0.52251812,109210.0,109200.0,0.34220567]
[1756630719484,0.52251812,109210.0,109200.0,0.34416567]
[1756630720048,0.52251812,109210.0,109200.0,0.34220567]
[1756630720250,0.52251812,109210.0,109200.0,0.33906567]
[1756630720455,0.85330319,109210.0,109200.0,0.33906567]
[1756630720660,0.88083419,109210.0,109200.0,0.33906567]
[1756630720869,0.55004912,109210.0,109200.0,0.33906567]
[1756630721287,0.55004912,109210.0,109200.0,0.34228567]
[1756630723186,0.88083419,109210.0,109200.0,0.34228567]
[1756630723790,0.21926405,109210.0,109200.0,0.34228567]
[1756630724033,0.88083419,109210.0,109200.0,0.34228567]
[1756630724786,0.88083319,109210.0,109200.0,0.34228567]
[1756630730141,0.89004812,109210.0,109200.0,0.34228567]
[1756630731791,0.88144992,109210.0,109200.0,0.34228567]
[1756630732007,0.89004773,109210.0,109200.0,0.34228567]
[1756630732161,0.89004773,109210.0,109200.0,0.34430567]
[1756630735390,0.88144992,109210.0,109200.0,0.34430567]
[1756630735598,0.8900477,109210.0,109200.0,0.34430567]
[1756630737293,0.55926263,109210.0,109200.0,0.34430567]
[1756630737495,0.8900477,109210.0,109200.0,0.34430567]
[1756630737904,0.55926263,109210.0,109200.0,0.34430567]
[1756630738347,0.8900477,109210.0,109200.0,0.34430567]
[1756630739172,0.89004757,109210.0,109200.0,0.34430567]
[1756630740251,0.5592625,109210.0,109200.0,0.34430567]
[1756630740430,0.89004757,109210.0,109200.0,0.34430567]
[1756630740634,0.5592625,109210.0,109200.0,0.34430567]
[1756630740836,0.89004757,109210.0,109200.0,0.34430567]
[1756630743152,0.5592625,109210.0,109200.0,0.34430567]
[1756630743358,0.89004757,109210.0,109200.0,0.34430567]
[1756630744968,0.89004758,109210.0,109200.0,0.34430567]
[1756630745460,0.88144992,109210.0,109200.0,0.34151383]
[1756630745622,0.89004758,109210.0,109200.0,0.34151383]
[1756630748001,0.55926251,109210.0,109200.0,0.34151383]
[1756630748207,0.89004758,109210.0,109200.0,0.34151383]
[1756630749517,1.22083265,109210.0,109200.0,0.34151383]
[1756630751135,1.22083265,109210.0,109200.0,0.31398383]
[1756630755598,1.22083257,109210.0,109200.0,0.31398383]
[1756630761889,1.22083257,109210.0,109200.0,0.16138383]
[1756630762074,1.22083257,109210.0,109200.0,0.31394383]
[1756630763243,1.22083257,109210.0,109200.0,0.16138383]
[1756630763484,1.22083257,109210.0,109200.0,0.31394383]
[1756630766373,1.21223499,109210.0,109200.0,0.31394383]
[1756630766633,1.22083312,109210.0,109200.0,0.31394383]
[1756630767598,0.55926298,109210.0,109200.0,0.31394383]
[1756630767817,1.22083312,109210.0,109200.0,0.31394383]
[1756630773119,1.22083312,109210.0,109200.0,0.34147483]
[1756630777216,1.22083296,109210.0,109200.0,0.34147483]
[1756630778288,1.220781,109210.0,109200.0,0.34147483]
[1756630780237,0.55921086,109210.0,109200.0,0.34147483]
[1756630780691,1.19325,109210.0,109200.0,0.34147483]
[1756630788028,1.19325024,109210.0,109200.0,0.34147483]
[1756630790597,1.19325038,109210.0,109200.0,0.34147483]
[1756630793243,0.99699663,109210.0,109200.0,0.34147483]
[1756630793452,1.18013048,109210.0,109200.0,0.34147483]
[1756630797903,1.18013048,109210.0,109200.0,0.18891483]
[1756630798072,1.18013048,109210.0,109200.0,0.34143483]
[1756630798731,1.18013105,109210.0,109200.0,0.34143483]
[1756630801258,1.18013105,109210.0,109200.0,0.18891483]
[1756630801465,1.18013105,109210.0,109200.0,0.34143483]
[1756630801627,1.20766305,109210.0,109200.0,0.34143483]
[1756630805061,1.20766305,109210.0,109200.0,0.34139483]
[1756630805636,1.20766305,109210.0,109200.0,0.18689483]
[1756630806052,1.20766305,109210.0,109200.0,0.33937483]
[1756630806258,1.20766305,109210.0,109200.0,0.18689483]
[1756630806431,1.20766305,109210.0,109200.0,0.33937483]
[1756630808291,1.20766194,109210.0,109200.0,0.33937483]
[1756630808710,1.20766194,109210.0,109200.0,0.18689483]
[1756630808917,1.20766194,109210.0,109200.0,0.33937483]
[1756630810239,1.20766194,109210.0,109200.0,0.18673483]
[1756630810461,1.18012994,109210.0,109200.0,0.30862383]
[1756630810682,1.20766294,109210.0,109200.0,0.30862383]
[1756630817840,1.20766294,109210.0,109200.0,0.31168383]
[1756630818106,1.20766294,109210.0,109200.0,0.15614383]
[1756630818283,1.555641,109210.0,109200.0,0.30862383]
[1756630818619,1.19906513,109210.0,109200.0,0.30862383]
[1756630818833,1.22484921,109210.0,109200.0,0.30862383]
[1756630819392,1.22484921,109210.0,109200.0,0.15614383]
[1756630819721,1.55563428,109210.0,109200.0,0.30862383]
[1756630820307,1.22484921,109210.0,109200.0,0.30862383]
[1756630821621,1.55563428,109210.0,109200.0,0.30862383]
[1756630821997,1.22484921,109210.0,109200.0,0.30862383]
[1756630823438,1.55563428,109210.0,109200.0,0.30862383]
[1756630824394,1.22484921,109210.0,109200.0,0.30862383]
[1756630829306,1.19906513,109210.0,109200.0,0.30862383]
[1756630829528,1.22483183,109210.0,109200.0,0.30862383]
[1756630829766,0.56326169,109210.0,109200.0,0.30862383]
[1756630829982,1.22483183,109210.0,109200.0,0.30862383]
[1756630831928,1.22483183,109210.0,109200.0,0.31176383]
[1756630834592,1.21142683,109210.0,109200.0,0.31176383]
[1756630836410,1.21142861,109210.0,109200.0,0.31176383]
[1756630839893,1.19424903,109210.0,109200.0,0.31176383]
[1756630840115,1.21143367,109210.0,109200.0,0.31176383]
[1756630842635,0.54986353,109210.0,109200.0,0.15928383]
[1756630842847,1.21143367,109210.0,109200.0,0.31180383]
[1756630847405,1.21788344,109210.0,109200.0,0.31180383]
[1756630850689,1.21790913,109210.0,109200.0,0.15614383]
[1756630850894,1.21790913,109210.0,109200.0,0.30866383]
[1756630851286,0.55633899,109210.0,109200.0,0.30866383]
[1756630851511,1.21790913,109210.0,109200.0,0.30866383]
[1756630854303,1.21786338,109210.0,109200.0,0.30866383]
[1756630854503,1.21786338,109210.0,109200.0,0.15614383]
[1756630854643,1.21786338,109210.0,109200.0,0.30870383]
[1756630855477,1.21786338,109210.0,109200.0,0.31175383]
[1756630858184,1.21786239,109210.0,109200.0,0.31175383]
[1756630860968,1.21786123,109210.0,109200.0,0.31175383]
[1756630862054,1.21786112,109210.0,109200.0,0.31175383]
[1756630863447,1.21786112,109210.0,109200.0,0.31371383]
[1756630864349,0.55629098,109210.0,109200.0,0.31371383]
[1756630864557,1.21786112,109210.0,109200.0,0.31371383]
[1756630868255,0.55629098,109210.0,109200.0,0.31371383]
[1756630868409,1.21786112,109210.0,109200.0,0.31371383]
[1756630869395,1.21786112,109210.0,109200.0,0.31367383]
[1756630871001,1.21785984,109210.0,109200.0,0.31367383]
[1756630871215,1.21785984,109210.0,109200.0,0.16115383]
[1756630871347,1.21785984,109210.0,109200.0,0.31367383]
[1756630877950,1.20926105,109210.0,109200.0,0.31367383]
[1756630878178,1.21786011,109210.0,109200.0,0.31367383]
[1756630880199,1.21786025,109210.0,109200.0,0.31367383]
[1756630881515,1.20926267,109210.0,109200.0,0.31367383]
[1756630881746,1.21786205,109210.0,109200.0,0.31367383]
[1756630882402,1.21786228,109210.0,109200.0,0.31367383]
[1756630882605,0.55629214,109210.0,109200.0,0.31367383]
[1756630882824,1.21786228,109210.0,109200.0,0.31367383]
[1756630883378,0.55629214,109210.0,109200.0,0.31367383]
[1756630883585,1.21786228,109210.0,109200.0,0.30866383]
[1756630884181,1.21786228,109210.0,109200.0,0.31167383]
[1756630885285,1.21786276,109210.0,109200.0,0.31167383]
[1756630887443,1.21786276,109210.0,109200.0,0.15915383]
[1756630887658,1.21786276,109210.0,109200.0,0.31376383]
[1756630889896,1.21786276,109210.0,109200.0,0.31372383]
[1756630892182,1.18561438,109210.0,109200.0,0.31372383]
[1756630892374,1.2178633,109210.0,109200.0,0.31372383]
[1756630893898,0.55629316,109210.0,109200.0,0.31372383]
[1756630894238,1.2178633,109210.0,109200.0,0.31372383]
[1756630896279,0.55629316,109210.0,109200.0,0.31372383]
[1756630896483,1.2178633,109210.0,109200.0,0.31372383]
[1756630898441,0.90448591,109210.0,109200.0,0.31372383]
[1756630899952,0.24291577,109210.0,109200.0,0.31372383]
[1756630900158,0.90448591,109210.0,109200.0,0.31372383]
[1756630900355,1.24448591,109210.0,109200.0,0.31372383]
[1756630902854,1.23803612,109210.0,109200.0,0.31372383]
[1756630903080,1.2444859,109210.0,109200.0,0.31372383]
[1756630903471,1.24448591,109210.0,109200.0,0.31372383]
[1756630903721,1.24448592,109210.0,109200.0,0.31372383]
[1756630913535,1.2272865,109210.0,109200.0,0.31372383]
[1756630913741,1.24448778,109210.0,109200.0,0.31372383]
[1756630914554,1.24448778,109210.0,109200.0,0.16124383]
[1756630914763,1.57527285,109210.0,109200.0,0.07044]
[1756630914973,0.18316695,109190.0,109180.0,0.07354]
[1756630915181,0.87053772,109190.0,109180.0,0.31904001]
[1756630915388,1.21053772,109190.0,109180.0,0.32115001]
[1756630915598,1.23807772,109190.0,109180.0,0.16863001]
[1756630915991,1.23807772,109190.0,109180.0,0.32119001]
[1756630916199,1.23807772,109190.0,109180.0,0.32519001]
[1756630916396,1.23807772,109190.0,109180.0,0.17263001]
[1756630916627,1.56886279,109190.0,109180.0,0.07444]
[1756630916826,1.56886279,109190.0,109180.0,0.227]
[1756630917393,1.56886279,109190.0,109180.0,0.225]
[1756630917590,1.56886279,109190.0,109180.0,0.07244]
[1756630917860,5.00088649,109190.0,109180.0,0.22604]
[1756630918272,4.98368607,109190.0,109180.0,0.22504]
[1756630918475,5.00083652,109190.0,109180.0,0.22304]
[1756630918715,5.00083652,109190.0,109180.0,0.22404]
[1756630919220,5.00083652,109190.0,109180.0,0.22304]
[1756630919988,5.00083652,109190.0,109180.0,0.22308]
[1756630920957,5.00083652,109190.0,109170.0,4.756e-05]
[1756630921146,4.94112094,109180.0,109170.0,4.756e-05]
[1756630921302,1.52412357,109180.0,109170.0,0.00314756]
[1756630921507,1.54308294,109180.0,109170.0,0.00314756]
[1756630921716,1.54308294,109180.0,109170.0,0.00525756]
[1756630922147,1.54308294,109180.0,109170.0,0.15785756]
[1756630922526,1.54308294,109180.0,109170.0,0.00525756]
[1756630922711,1.54308294,109180.0,109170.0,0.15785756]
[1756630922917,1.54308294,109180.0,109170.0,0.15885756]
[1756630923346,1.54308294,109180.0,109170.0,0.25183757]
[1756630923548,0.8539688,109180.0,109170.0,0.25183757]
[1756630923777,0.5107188,109180.0,109170.0,0.32992597]
[1756630924186,0.84150387,109180.0,109170.0,0.27937657]
[1756630924387,1.18150387,109180.0,109170.0,0.27937657]
[1756630924615,0.84150387,109180.0,109170.0,0.27937657]
[1756630924809,0.51993373,109180.0,109170.0,0.28037657]
[1756630925168,1.18150387,109180.0,109170.0,0.28037657]
[1756630925810,0.51993373,109180.0,109170.0,0.28037657]
[1756630926015,1.18150387,109180.0,109170.0,0.28037657]
[1756630927880,0.51993373,109180.0,109170.0,0.28037657]
[1756630928013,1.18150387,109180.0,109170.0,0.28037657]
[1756630931908,1.18150387,109180.0,109170.0,0.12777657]
[1756630932170,1.18150387,109180.0,109170.0,0.28045657]
[1756630934969,1.18150387,109180.0,109170.0,0.46365708]
[1756630935215,1.00157014,109180.0,109170.0,0.46365708]
[1756630935390,1.18475387,109180.0,109170.0,0.46365708]
[1756630935594,0.8539688,109180.0,109170.0,0.46365708]
[1756630938231,1.18475387,109180.0,109170.0,0.46365708]
[1756630940022,1.18475387,109180.0,109170.0,0.12777657]
[1756630940228,1.18475387,109180.0,109170.0,0.28037657]
[1756630941634,1.18475387,109180.0,109170.0,0.12777657]
[1756630941886,1.18475387,109180.0,109170.0,0.28037657]
[1756630943732,1.18670387,109180.0,109170.0,0.28037657]
[1756630946476,1.18670387,109180.0,109170.0,0.12777657]
[1756630946681,1.18670387,109180.0,109170.0,0.28037657]
[1756630947132,1.18670387,109180.0,109170.0,0.12256657]
[1756630947333,0.84982387,109180.0,109170.0,0.24758757]
[1756630949026,1.18060894,109180.0,109170.0,0.09502757]
[1756630949401,1.52060894,109180.0,109170.0,0.24770757]
[1756630951684,1.52060894,109180.0,109170.0,0.24774757]
[1756630953239,1.52060894,109180.0,109170.0,0.09502757]
[1756630953377,1.54637831,109180.0,109170.0,0.24774757]
[1756630953599,1.54637831,109180.0,109170.0,0.09502757]
[1756630953819,1.54637831,109180.0,109170.0,0.15480756]
[1756630954237,1.52919868,109180.0,109170.0,0.15480756]
[1756630955313,1.52060894,109180.0,109170.0,0.15480756]
[1756630955541,1.52919614,109180.0,109170.0,0.15480756]
[1756630956919,1.52919614,109180.0,109170.0,0.00204756]
[1756630957202,1.5463689,109180.0,109170.0,0.15476756]
[1756630957438,1.54636679,109180.0,109170.0,0.15376756]
[1756630957630,1.54636679,109180.0,109170.0,0.15276756]
[1756630958161,1.57391079,109180.0,109170.0,0.15276756]
[1756630960269,1.55674014,109180.0,109170.0,0.15276756]
[1756630960456,1.55362014,109180.0,109170.0,0.15276756]
[1756630963200,1.55674014,109180.0,109170.0,0.15276756]
[1756630963863,1.55362014,109180.0,109170.0,0.15276756]
[1756630966148,1.55361368,109180.0,109170.0,0.15276756]
[1756630968350,1.55361368,109180.0,109170.0,0.15268756]
[1756630968556,1.55673368,109180.0,109170.0,4.756e-05]
[1756630968801,1.55361368,109180.0,109170.0,0.15268756]
[1756630969240,1.57077876,109180.0,109170.0,0.15268756]
[1756630970197,1.61300201,109180.0,109170.0,0.15268756]
[1756630970595,1.59615342,109180.0,109170.0,4.756e-05]
[1756630970922,1.59615342,109180.0,109170.0,0.15280756]
[1756630973193,1.59615865,109180.0,109170.0,0.15280756]
[1756630974170,0.60380344,109180.0,109170.0,0.15280756]
[1756630974376,1.59615865,109180.0,109170.0,0.15587756]
[1756630976178,1.60260238,109180.0,109170.0,0.15587756]
[1756630976607,1.60262628,109180.0,109170.0,0.15587756]
[1756630978546,1.60264104,109180.0,109170.0,0.15587756]
[1756630978768,1.60264104,109180.0,109170.0,0.15615756]
[1756630980480,1.57509704,109180.0,109170.0,0.15615756]
[1756630982646,1.57510244,109180.0,109170.0,0.15615756]
[1756630986075,1.56865871,109180.0,109170.0,0.15615756]
[1756630986276,1.57511697,109180.0,109170.0,0.15615756]
[1756630986855,1.57511697,109180.0,109170.0,0.15821756]
[1756630989829,1.57511817,109180.0,109170.0,0.15821756]
[1756630996807,1.55791637,109180.0,109170.0,0.15821756]
[1756630997006,1.57512235,109180.0,109170.0,0.15821756]
[1756630997526,1.60266635,109180.0,109170.0,0.15821756]
[1756630998141,0.87056087,109180.0,109170.0,0.25119757]
[1756630998313,0.5139688,109180.0,109170.0,0.43439808]
[1756630998516,0.5139688,109180.0,109170.0,0.46193608]
[1756630998742,0.8539688,109180.0,109170.0,0.46193608]
[1756630998919,0.33078507,109180.0,109170.0,0.61193608]
[1756630999304,0.67078507,109180.0,109170.0,0.46193608]
[1756630999505,0.8539688,109180.0,109170.0,0.46193608]
[1756631000332,0.8539688,109180.0,109170.0,0.61193608]
[1756631000549,0.33078507,109180.0,109170.0,0.56742141]
[1756631000759,0.18316695,109190.0,109170.0,0.56742141]
[1756631000961,0.5139688,109180.0,109170.0,0.3183314]
[1756631001163,0.5139688,109180.0,109170.0,0.5140734]
[1756631001422,0.5139688,109180.0,109170.0,0.57447154]
[1756631001598,0.33078507,109180.0,109170.0,0.57767154]
[1756631001823,0.5139688,109180.0,109170.0,0.57767154]
[1756631002181,0.5139688,109180.0,109170.0,0.57967154]
[1756631002415,0.5139688,109180.0,109170.0,0.5468094]
[1756631002863,0.5139688,109180.0,109170.0,0.5488094]
[1756631005537,0.5139688,109180.0,109170.0,0.37404239]
[1756631005741,0.84475387,109180.0,109170.0,0.37408239]
[1756631005946,0.84475387,109180.0,109170.0,0.22120239]
[1756631006139,0.84475387,109180.0,109170.0,0.37408239]
[1756631006617,0.84475387,109180.0,109170.0,0.22120239]
[1756631006812,0.84475387,109180.0,109170.0,0.37408239]
[1756631008510,0.84475387,109180.0,109170.0,0.22120239]
[1756631008706,0.84475387,109180.0,109170.0,0.37408239]
[1756631014546,0.84475387,109180.0,109170.0,0.37404239]
[1756631016195,0.84475387,109180.0,109170.0,0.43469007]
[1756631017340,0.84475387,109180.0,109170.0,0.28185007]
[1756631017491,0.84475387,109180.0,109170.0,0.43477007]
[1756631021362,0.84475387,109180.0,109170.0,0.28185007]
[1756631021506,0.84475387,109180.0,109170.0,0.43477007]
[1756631021732,0.84475387,109180.0,109170.0,0.28185007]
[1756631021928,0.84475387,109180.0,109170.0,0.43473007]
[1756631022720,0.84475387,109180.0,109170.0,0.28185007]
[1756631023052,0.84475387,109180.0,109170.0,0.37408239]
[1756631023474,0.18318373,109180.0,109170.0,0.37408239]
[1756631023684,0.84475387,109180.0,109170.0,0.37408239]
[1756631025066,0.5139688,109180.0,109170.0,0.5572829]
[1756631025288,0.5139688,109180.0,109170.0,0.63625464]
[1756631025508,0.5139688,109180.0,109170.0,0.68547255]
[1756631027012,0.5139688,109180.0,109170.0,0.50227204]
[1756631027419,0.84475387,109180.0,109170.0,0.50227204]
[1756631027663,0.84475387,109180.0,109170.0,0.4233003]
[1756631030432,0.84475387,109180.0,109170.0,0.2704203]
[1756631030664,0.84475387,109180.0,109170.0,0.4233403]
[1756631031682,0.84475387,109180.0,109170.0,0.60654081]
[1756631032274,0.84475387,109180.0,109170.0,0.45362081]
[1756631032582,0.84475387,109180.0,109170.0,0.60654081]
[1756631041037,0.84475387,109180.0,109170.0,0.4233403]
[1756631041244,0.84673387,109180.0,109170.0,0.4232203]
[1756631043045,0.18318373,109180.0,109170.0,0.4232203]
[1756631043398,0.18516373,109180.0,109170.0,0.4232203]
[1756631043546,0.84673387,109180.0,109170.0,0.4232203]
[1756631046115,0.18516373,109180.0,109170.0,0.4232203]
[1756631046336,0.84673387,109180.0,109170.0,0.4231803]
[1756631046756,0.66157014,109180.0,109170.0,0.2704203]
[1756631046968,0.7824292,109180.0,109170.0,0.37396239]
[1756631047293,0.7824292,109180.0,109170.0,0.19820357]
[1756631047500,0.7824292,109180.0,109170.0,0.19500357]
[1756631047695,0.7824292,109180.0,109170.0,0.34776357]
[1756631053593,0.7824292,109180.0,109170.0,0.35069357]
[1756631055740,0.7824292,109180.0,109170.0,0.35278357]
[1756631063620,0.18318373,109180.0,109170.0,0.35278357]
[1756631063826,0.84475387,109180.0,109170.0,0.35278357]
[1756631064926,0.18318373,109180.0,109170.0,0.35278357]
[1756631065102,0.84475387,109180.0,109170.0,0.35278357]
[1756631065606,0.84475387,109180.0,109170.0,0.20002357]
[1756631065782,0.84475387,109180.0,109170.0,0.35266357]
[1756631069178,0.66157014,109180.0,109170.0,0.53586408]
[1756631069383,0.84475387,109180.0,109170.0,0.58508199]
[1756631069606,0.84475387,109180.0,109170.0,0.40188148]
[1756631073110,0.84475387,109180.0,109170.0,0.24924148]
[1756631073321,0.84475387,109180.0,109170.0,0.40188148]
[1756631077474,0.84475387,109180.0,109170.0,0.40092646]
[1756631086721,0.18318373,109180.0,109170.0,0.58412697]
[1756631086895,0.5139688,109180.0,109170.0,0.40092646]
[1756631087234,0.84475387,109180.0,109170.0,0.58412697]
[1756631087485,0.5139688,109180.0,109170.0,0.58412697]
[1756631090195,0.84475387,109180.0,109170.0,0.58412697]
[1756631090618,0.18318373,109180.0,109170.0,0.66742813]
[1756631090828,0.84475387,109180.0,109170.0,0.66742813]
[1756631091688,0.84475387,109180.0,109170.0,0.48422762]
[1756631091889,0.84475387,109180.0,109170.0,0.40092646]
[1756631093665,0.18318373,109180.0,109170.0,0.40092646]
[1756631093873,0.84475387,109180.0,109170.0,0.40092646]
[1756631095571,0.84475387,109180.0,109170.0,0.58412697]
[1756631096243,0.84475387,109180.0,109170.0,0.40092646]
[1756631099280,0.5139688,109180.0,109170.0,0.64910808]
[1756631099483,0.5139688,109180.0,109170.0,0.49646808]
[1756631099692,0.5139688,109180.0,109170.0,0.64906808]
[1756631100765,0.84475387,109180.0,109170.0,0.64906808]
[1756631102372,0.84475387,109180.0,109170.0,0.31326757]
[1756631102662,0.84475387,109180.0,109170.0,0.40088646]
[1756631107929,0.18318373,109180.0,109170.0,0.40088646]
[1756631108312,0.84475387,109180.0,109170.0,0.40088646]